fUSD/lending_fUSD_20260621
["ID","MTS","AMOUNT","RATE_DAILY","PERIOD"]
[425928997,1782037846000,-500.0,0.00027397,2]
[425928989,1782037846000,-500.0,0.00027397,2]
[425929020,1782037846000,-408.94596945,0.00027397,2]
[425929016,1782037846000,-500.0,0.00027397,2]
[425929018,1782037846000,-500.0,0.00027397,2]
[425929017,1782037846000,-836.69,0.00027397,2]
[425929022,1782037846000,-514.32169163,0.00027397,2]
[425929023,1782037846000,-500.0,0.00027397,2]
[425929019,1782037846000,-500.0,0.00027397,2]
[425929025,1782037846000,-500.0,0.00027397,2]
[425929026,1782037846000,-500.0,0.00027397,2]
[425929033,1782037846000,-500.0,0.00027397,2]
[425929028,1782037846000,-500.0,0.00027397,2]
[425929021,1782037846000,-500.0,0.00027397,2]
[425929032,1782037846000,-500.0,0.00027397,2]
[425929035,1782037846000,-500.0,0.00027397,2]
[425929031,1782037846000,-500.0,0.00027397,2]
[425929029,1782037846000,-500.0,0.00027397,2]
[425929034,1782037846000,-500.0,0.00027397,2]
[425929036,1782037846000,-500.0,0.00027397,2]
[425929039,1782037846000,-500.0,0.00027397,2]
[425929041,1782037846000,-500.0,0.00027397,2]
[425929038,1782037846000,-500.0,0.00027397,2]
[425929037,1782037846000,-500.0,0.00027397,2]
[425929042,1782037846000,-500.0,0.00027397,2]
[425928994,1782037846000,-1325.61,0.00027397,2]
[425929030,1782037846000,-500.0,0.00027397,2]
[425929024,1782037846000,-590.33,0.00027397,2]
[425929027,1782037846000,-500.0,0.00027397,2]
[425929015,1782037846000,-500.0,0.00027397,2]
[425929013,1782037846000,-500.0,0.00027397,2]
[425928986,1782037846000,-500.0,0.00027397,2]
[425928985,1782037846000,-500.0,0.00027397,2]
[425928990,1782037846000,-500.0,0.00027397,2]
[425928991,1782037846000,-500.0,0.00027397,2]
[425928992,1782037846000,-42571.055771,0.00027397,2]
[425928996,1782037846000,-500.0,0.00027397,2]
[425929001,1782037846000,-500.0,0.00027397,2]
[425929040,1782037846000,-500.0,0.00027397,2]
[425928999,1782037846000,-500.0,0.00027397,2]
[425928998,1782037846000,-500.0,0.00027397,2]
[425929004,1782037846000,-500.0,0.00027397,2]
[425928995,1782037846000,-500.0,0.00027397,2]
[425929012,1782037846000,-500.0,0.00027397,2]
[425929014,1782037846000,-500.0,0.00027397,2]
[425929000,1782037846000,-500.0,0.00027397,2]
[425929009,1782037846000,-492.63740893,0.00027397,2]
[425929008,1782037846000,-592.99,0.00027397,2]
[425929010,1782037846000,-174.92044405,0.00027397,2]
[425929011,1782037846000,-500.0,0.00027397,2]
[425929006,1782037846000,-170.260492,0.00027397,2]
[425929005,1782037846000,-500.0,0.00027397,2]
[425929003,1782037846000,-629.68838863,0.00027397,2]
[425929002,1782037846000,-500.0,0.00027397,2]
[425929007,1782037846000,-500.0,0.00027397,2]
[425929079,1782037847000,-500.0,0.00027397,2]
[425929087,1782037847000,-500.0,0.00027397,2]
[425929086,1782037847000,-500.0,0.00027397,2]
[425929084,1782037847000,-500.0,0.00027397,2]
[425929081,1782037847000,-1398.44,0.00027397,2]
[425929085,1782037847000,-500.0,0.00027397,2]
[425929077,1782037847000,-500.0,0.00027397,2]
[425929083,1782037847000,-500.0,0.00027397,2]
[425929082,1782037847000,-500.0,0.00027397,2]
[425929089,1782037847000,-515.73,0.00027397,2]
[425929080,1782037847000,-500.0,0.00027397,2]
[425929091,1782037847000,-500.0,0.00027397,2]
[425929100,1782037847000,-500.0,0.00027397,2]
[425929099,1782037847000,-500.0,0.00027397,2]
[425929090,1782037847000,-500.0,0.00027397,2]
[425929098,1782037847000,-500.0,0.00027397,2]
[425929094,1782037847000,-500.0,0.00027397,2]
[425929097,1782037847000,-500.0,0.00027397,2]
[425929095,1782037847000,-521.61338754,0.00027397,2]
[425929093,1782037847000,-3841.84,0.00027397,2]
[425929096,1782037847000,-500.0,0.00027397,2]
[425929101,1782037847000,-500.0,0.00027397,2]
[425929111,1782037847000,-500.0,0.00027397,2]
[425929102,1782037847000,-500.0,0.00027397,2]
[425929078,1782037847000,-500.0,0.00027397,2]
[425929092,1782037847000,-554.27065075,0.00027397,2]
[425929088,1782037847000,-202.83736543,0.00027397,2]
[425929045,1782037847000,-500.0,0.00027397,2]
[425929069,1782037847000,-500.0,0.00027397,2]
[425929104,1782037847000,-2010.0,0.00027397,2]
[425929047,1782037847000,-500.0,0.00027397,2]
[425929043,1782037847000,-500.0,0.00027397,2]
[425929046,1782037847000,-500.0,0.00027397,2]
[425929044,1782037847000,-500.0,0.00027397,2]
[425929049,1782037847000,-500.0,0.00027397,2]
[425929048,1782037847000,-500.0,0.00027397,2]
[425929062,1782037847000,-500.0,0.00027397,2]
[425929051,1782037847000,-500.0,0.00027397,2]
[425929054,1782037847000,-500.0,0.00027397,2]
[425929060,1782037847000,-500.0,0.00027397,2]
[425929055,1782037847000,-760.72,0.00027397,2]
[425929056,1782037847000,-500.0,0.00027397,2]
[425929050,1782037847000,-500.0,0.00027397,2]
[425929052,1782037847000,-500.0,0.00027397,2]
[425929053,1782037847000,-500.0,0.00027397,2]
[425929058,1782037847000,-500.0,0.00027397,2]
[425929065,1782037847000,-500.0,0.00027397,2]
[425929070,1782037847000,-444.45474692,0.00027397,2]
[425929076,1782037847000,-500.0,0.00027397,2]
[425929067,1782037847000,-791.91,0.00027397,2]
[425929071,1782037847000,-500.0,0.00027397,2]
[425929075,1782037847000,-500.0,0.00027397,2]
[425929072,1782037847000,-352.91613915,0.00027397,2]
[425929074,1782037847000,-500.0,0.00027397,2]
[425929073,1782037847000,-869.83,0.00027397,2]
[425929103,1782037847000,-500.0,0.00027397,2]
[425929106,1782037847000,-500.0,0.00027397,2]
[425929110,1782037847000,-500.0,0.00027397,2]
[425929144,1782037847000,-500.0,0.00027397,2]
[425929142,1782037847000,-1000.0,0.00027397,2]
[425929145,1782037847000,-958.6,0.00027397,2]
[425929139,1782037847000,-500.0,0.00027397,2]
[425929140,1782037847000,-500.0,0.00027397,2]
[425929136,1782037847000,-500.0,0.00027397,2]
[425929141,1782037847000,-517.66992654,0.00027397,2]
[425929146,1782037847000,-500.0,0.00027397,2]
[425929143,1782037847000,-500.0,0.00027397,2]
[425929148,1782037847000,-500.0,0.00027397,2]
[425929147,1782037847000,-500.0,0.00027397,2]
[425929150,1782037847000,-500.0,0.00027397,2]
[425929138,1782037847000,-501.82455083,0.00027397,2]
[425929151,1782037847000,-500.0,0.00027397,2]
[425929157,1782037847000,-500.0,0.00027397,2]
[425929152,1782037847000,-500.0,0.00027397,2]
[425929154,1782037847000,-500.0,0.00027397,2]
[425929156,1782037847000,-500.0,0.00027397,2]
[425929155,1782037847000,-500.0,0.00027397,2]
[425929153,1782037847000,-500.0,0.00027397,2]
[425929158,1782037847000,-500.0,0.00027397,2]
[425929160,1782037847000,-634.01695776,0.00027397,2]
[425929109,1782037847000,-2086.7,0.00027397,2]
[425929159,1782037847000,-500.0,0.00027397,2]
[425929162,1782037847000,-608.71,0.00027397,2]
[425929163,1782037847000,-431.1846051,0.00027397,2]
[425929149,1782037847000,-1205.38,0.00027397,2]
[425929137,1782037847000,-500.0,0.00027397,2]
[425929161,1782037847000,-500.0,0.00027397,2]
[425929133,1782037847000,-1345.44,0.00027397,2]
[425929135,1782037847000,-501.82455083,0.00027397,2]
[425929108,1782037847000,-500.0,0.00027397,2]
[425929107,1782037847000,-500.0,0.00027397,2]
[425929119,1782037847000,-500.0,0.00027397,2]
[425929112,1782037847000,-500.0,0.00027397,2]
[425929122,1782037847000,-500.0,0.00027397,2]
[425929120,1782037847000,-500.0,0.00027397,2]
[425929117,1782037847000,-500.0,0.00027397,2]
[425929116,1782037847000,-500.0,0.00027397,2]
[425929118,1782037847000,-4255.92,0.00027397,2]
[425929114,1782037847000,-512.55707541,0.00027397,2]
[425929115,1782037847000,-3292.77,0.00027397,2]
[425929105,1782037847000,-500.0,0.00027397,2]
[425929121,1782037847000,-500.0,0.00027397,2]
[425929123,1782037847000,-500.0,0.00027397,2]
[425929131,1782037847000,-501.82455083,0.00027397,2]
[425929130,1782037847000,-500.0,0.00027397,2]
[425929129,1782037847000,-500.0,0.00027397,2]
[425929125,1782037847000,-1744.77,0.00027397,2]
[425929132,1782037847000,-501.82455083,0.00027397,2]
[425929124,1782037847000,-5206.76,0.00027397,2]
[425929134,1782037847000,-501.82455083,0.00027397,2]
[425929126,1782037847000,-500.0,0.00027397,2]
[425929127,1782037847000,-500.0,0.00027397,2]
[425929113,1782037847000,-500.0,0.00027397,2]
[425929128,1782037847000,-757.98,0.00027397,2]
[425929197,1782037848000,-309.26876105,0.00027397,2]
[425929187,1782037848000,-500.0,0.00027397,2]
[425929184,1782037848000,-500.0,0.00027397,2]
[425929191,1782037848000,-500.0,0.00027397,2]
[425929193,1782037848000,-500.0,0.00027397,2]
[425929195,1782037848000,-500.0,0.00027397,2]
[425929207,1782037848000,-500.0,0.00027397,2]
[425929196,1782037848000,-500.0,0.00027397,2]
[425929208,1782037848000,-500.0,0.00027397,2]
[425929186,1782037848000,-212.04879848,0.00027397,2]
[425929204,1782037848000,-3874.02,0.00027397,2]
[425929198,1782037848000,-500.0,0.00027397,2]
[425929199,1782037848000,-500.0,0.00027397,2]
[425929201,1782037848000,-500.0,0.00027397,2]
[425929203,1782037848000,-546.13075202,0.00027397,2]
[425929202,1782037848000,-500.0,0.00027397,2]
[425929206,1782037848000,-500.0,0.00027397,2]
[425929205,1782037848000,-500.0,0.00027397,2]
[425929213,1782037848000,-747.29,0.00027397,2]
[425929211,1782037848000,-509.56,0.00027397,2]
[425929210,1782037848000,-500.0,0.00027397,2]
[425929185,1782037848000,-500.0,0.00027397,2]
[425929200,1782037848000,-500.0,0.00027397,2]
[425929190,1782037848000,-500.0,0.00027397,2]
[425929175,1782037848000,-584.87,0.00027397,2]
[425929194,1782037848000,-500.0,0.00027397,2]
[425929212,1782037848000,-500.0,0.00027397,2]
[425929165,1782037848000,-500.0,0.00027397,2]
[425929166,1782037848000,-500.0,0.00027397,2]
[425929164,1782037848000,-500.0,0.00027397,2]
[425929169,1782037848000,-500.0,0.00027397,2]
[425929167,1782037848000,-853.67,0.00027397,2]
[425929168,1782037848000,-320.40893862,0.00027397,2]
[425929182,1782037848000,-4952.69,0.00027397,2]
[425929181,1782037848000,-526.28458613,0.00027397,2]
[425929171,1782037848000,-500.0,0.00027397,2]
[425929192,1782037848000,-500.0,0.00027397,2]
[425929173,1782037848000,-500.0,0.00027397,2]
[425929174,1782037848000,-606.08,0.00027397,2]
[425929176,1782037848000,-4370.8,0.00027397,2]
[425929172,1782037848000,-6740.75,0.00027397,2]
[425929180,1782037848000,-500.0,0.00027397,2]
[425929178,1782037848000,-500.0,0.00027397,2]
[425929177,1782037848000,-500.0,0.00027397,2]
[425929179,1782037848000,-500.0,0.00027397,2]
[425929183,1782037848000,-863.82,0.00027397,2]
[425929188,1782037848000,-736.37,0.00027397,2]
[425929189,1782037848000,-500.0,0.00027397,2]
[425929170,1782037848000,-500.0,0.00027397,2]
[425929214,1782037848000,-500.0,0.00027397,2]
[425929209,1782037848000,-500.0,0.00027397,2]
[425929221,1782037848000,-500.0,0.00027397,2]
[425929243,1782037848000,-896.49,0.00027397,2]
[425929244,1782037848000,-500.0,0.00027397,2]
[425929245,1782037848000,-500.0,0.00027397,2]
[425929241,1782037848000,-500.0,0.00027397,2]
[425929246,1782037848000,-500.0,0.00027397,2]
[425929250,1782037848000,-500.0,0.00027397,2]
[425929248,1782037848000,-6334.76,0.00027397,2]
[425929247,1782037848000,-500.0,0.00027397,2]
[425929251,1782037848000,-500.0,0.00027397,2]
[425929249,1782037848000,-500.0,0.00027397,2]
[425929255,1782037848000,-500.0,0.00027397,2]
[425929254,1782037848000,-6938.43,0.00027397,2]
[425929259,1782037848000,-500.0,0.00027397,2]
[425929258,1782037848000,-500.0,0.00027397,2]
[425929262,1782037848000,-5735.18,0.00027397,2]
[425929260,1782037848000,-504.3253233,0.00027397,2]
[425929256,1782037848000,-500.0,0.00027397,2]
[425929257,1782037848000,-500.0,0.00027397,2]
[425929261,1782037848000,-746.08,0.00027397,2]
[425929263,1782037848000,-500.0,0.00027397,2]
[425929264,1782037848000,-2630.75,0.00027397,2]
[425929266,1782037848000,-4885.48,0.00027397,2]
[425929216,1782037848000,-523.9782396,0.00027397,2]
[425929252,1782037848000,-500.0,0.00027397,2]
[425929242,1782037848000,-500.0,0.00027397,2]
[425929253,1782037848000,-500.0,0.00027397,2]
[425929235,1782037848000,-500.0,0.00027397,2]
[425929215,1782037848000,-3344.59,0.00027397,2]
[425929236,1782037848000,-500.0,0.00027397,2]
[425929219,1782037848000,-500.0,0.00027397,2]
[425929265,1782037848000,-500.0,0.00027397,2]
[425929217,1782037848000,-6285.21,0.00027397,2]
[425929220,1782037848000,-500.0,0.00027397,2]
[425929218,1782037848000,-500.0,0.00027397,2]
[425929222,1782037848000,-500.0,0.00027397,2]
[425929224,1782037848000,-6091.66,0.00027397,2]
[425929227,1782037848000,-500.0,0.00027397,2]
[425929225,1782037848000,-500.0,0.00027397,2]
[425929226,1782037848000,-690.61,0.00027397,2]
[425929223,1782037848000,-606.62,0.00027397,2]
[425929240,1782037848000,-6679.24,0.00027397,2]
[425929229,1782037848000,-500.0,0.00027397,2]
[425929234,1782037848000,-500.0,0.00027397,2]
[425929238,1782037848000,-500.0,0.00027397,2]
[425929230,1782037848000,-500.0,0.00027397,2]
[425929233,1782037848000,-5030.0,0.00027397,2]
[425929231,1782037848000,-500.0,0.00027397,2]
[425929237,1782037848000,-500.0,0.00027397,2]
[425929232,1782037848000,-9364.89,0.00027397,2]
[425929228,1782037848000,-500.0,0.00027397,2]
[425929239,1782037848000,-225.4268688,0.00027397,2]
[425929305,1782037849000,-500.0,0.00027397,2]
[425929306,1782037849000,-509.08760568,0.00027397,2]
[425929308,1782037849000,-500.0,0.00027397,2]
[425929302,1782037849000,-500.0,0.00027397,2]
[425929304,1782037849000,-514.40179207,0.00027397,2]
[425929295,1782037849000,-500.0,0.00027397,2]
[425929298,1782037849000,-500.0,0.00027397,2]
[425929301,1782037849000,-4656.76,0.00027397,2]
[425929299,1782037849000,-500.0,0.00027397,2]
[425929303,1782037849000,-523.3,0.00027397,2]
[425929300,1782037849000,-500.0,0.00027397,2]
[425929307,1782037849000,-500.0,0.00027397,2]
[425929318,1782037849000,-500.0,0.00027397,2]
[425929313,1782037849000,-500.0,0.00027397,2]
[425929310,1782037849000,-1180.04,0.00027397,2]
[425929320,1782037849000,-500.0,0.00027397,2]
[425929321,1782037849000,-500.0,0.00027397,2]
[425929311,1782037849000,-7163.35,0.00027397,2]
[425929314,1782037849000,-500.0,0.00027397,2]
[425929315,1782037849000,-500.0,0.00027397,2]
[425929312,1782037849000,-500.0,0.00027397,2]
[425929317,1782037849000,-1301.74,0.00027397,2]
[425929319,1782037849000,-3935.77,0.00027397,2]
[425929296,1782037849000,-500.0,0.00027397,2]
[425929309,1782037849000,-9528.18,0.00027397,2]
[425929289,1782037849000,-1501.04,0.00027397,2]
[425929272,1782037849000,-8907.33,0.00027397,2]
[425929292,1782037849000,-1115.01,0.00027397,2]
[425929270,1782037849000,-500.0,0.00027397,2]
[425929274,1782037849000,-500.0,0.00027397,2]
[425929323,1782037849000,-1073.5,0.00027397,2]
[425929268,1782037849000,-500.0,0.00027397,2]
[425929267,1782037849000,-560.49,0.00027397,2]
[425929269,1782037849000,-500.0,0.00027397,2]
[425929271,1782037849000,-500.0,0.00027397,2]
[425929273,1782037849000,-500.0,0.00027397,2]
[425929276,1782037849000,-10103.93,0.00027397,2]
[425929286,1782037849000,-500.0,0.00027397,2]
[425929275,1782037849000,-7097.95,0.00027397,2]
[425929279,1782037849000,-500.0,0.00027397,2]
[425929294,1782037849000,-500.0,0.00027397,2]
[425929278,1782037849000,-500.0,0.00027397,2]
[425929281,1782037849000,-662.83,0.00027397,2]
[425929282,1782037849000,-500.0,0.00027397,2]
[425929280,1782037849000,-555.38413167,0.00027397,2]
[425929285,1782037849000,-503.88010011,0.00027397,2]
[425929283,1782037849000,-500.0,0.00027397,2]
[425929284,1782037849000,-13019.17,0.00027397,2]
[425929287,1782037849000,-500.0,0.00027397,2]
[425929293,1782037849000,-4071.99,0.00027397,2]
[425929288,1782037849000,-500.0,0.00027397,2]
[425929297,1782037849000,-500.0,0.00027397,2]
[425929291,1782037849000,-8253.82,0.00027397,2]
[425929290,1782037849000,-10443.29,0.00027397,2]
[425929277,1782037849000,-500.0,0.00027397,2]
[425929322,1782037849000,-922.78,0.00027397,2]
[425929316,1782037849000,-500.0,0.00027397,2]
[425929324,1782037849000,-500.0,0.00027397,2]
[425929356,1782037849000,-5736.86,0.00027397,2]
[425929360,1782037849000,-500.0,0.00027397,2]
[425929358,1782037849000,-3337.66,0.00027397,2]
[425929357,1782037849000,-500.0,0.00027397,2]
[425929361,1782037849000,-500.0,0.00027397,2]
[425929359,1782037849000,-500.0,0.00027397,2]
[425929362,1782037849000,-500.0,0.00027397,2]
[425929364,1782037849000,-9276.24,0.00027397,2]
[425929365,1782037849000,-7069.12,0.00027397,2]
[425929363,1782037849000,-500.0,0.00027397,2]
[425929366,1782037849000,-500.0,0.00027397,2]
[425929367,1782037849000,-656.66,0.00027397,2]
[425929355,1782037849000,-500.0,0.00027397,2]
[425929376,1782037849000,-500.0,0.00027397,2]
[425929369,1782037849000,-500.0,0.00027397,2]
[425929368,1782037849000,-7741.98,0.00027397,2]
[425929370,1782037849000,-572.08726064,0.00027397,2]
[425929378,1782037849000,-8742.6,0.00027397,2]
[425929373,1782037849000,-611.44,0.00027397,2]
[425929375,1782037849000,-500.0,0.00027397,2]
[425929374,1782037849000,-500.0,0.00027397,2]
[425929377,1782037849000,-500.0,0.00027397,2]
[425929380,1782037849000,-500.0,0.00027397,2]
[425929381,1782037849000,-4906.25,0.00027397,2]
[425929379,1782037849000,-500.0,0.00027397,2]
[425929325,1782037849000,-500.0,0.00027397,2]
[425929372,1782037849000,-500.0,0.00027397,2]
[425929351,1782037849000,-500.0,0.00027397,2]
[425929371,1782037849000,-500.0,0.00027397,2]
[425929352,1782037849000,-869.85,0.00027397,2]
[425929353,1782037849000,-500.0,0.00027397,2]
[425929327,1782037849000,-500.0,0.00027397,2]
[425929330,1782037849000,-579.09603838,0.00027397,2]
[425929331,1782037849000,-9999.22,0.00027397,2]
[425929329,1782037849000,-500.0,0.00027397,2]
[425929328,1782037849000,-1451.53,0.00027397,2]
[425929332,1782037849000,-500.0,0.00027397,2]
[425929338,1782037849000,-500.0,0.00027397,2]
[425929333,1782037849000,-500.0,0.00027397,2]
[425929335,1782037849000,-500.0,0.00027397,2]
[425929336,1782037849000,-500.0,0.00027397,2]
[425929337,1782037849000,-500.0,0.00027397,2]
[425929340,1782037849000,-4485.52,0.00027397,2]
[425929326,1782037849000,-500.0,0.00027397,2]
[425929354,1782037849000,-500.0,0.00027397,2]
[425929349,1782037849000,-500.0,0.00027397,2]
[425929347,1782037849000,-730.93,0.00027397,2]
[425929348,1782037849000,-500.0,0.00027397,2]
[425929342,1782037849000,-508.21801403,0.00027397,2]
[425929346,1782037849000,-500.0,0.00027397,2]
[425929350,1782037849000,-500.0,0.00027397,2]
[425929345,1782037849000,-1479.66,0.00027397,2]
[425929343,1782037849000,-500.0,0.00027397,2]
[425929334,1782037849000,-5836.17,0.00027397,2]
[425929341,1782037849000,-500.0,0.00027397,2]
[425929339,1782037849000,-500.0,0.00027397,2]
[425929344,1782037849000,-500.0,0.00027397,2]
[425929424,1782037850000,-500.0,0.00027397,2]
[425929423,1782037850000,-500.0,0.00027397,2]
[425929418,1782037850000,-578.26,0.00027397,2]
[425929422,1782037850000,-500.0,0.00027397,2]
[425929420,1782037850000,-10625.36,0.00027397,2]
[425929409,1782037850000,-500.0,0.00027397,2]
[425929419,1782037850000,-4194.76,0.00027397,2]
[425929416,1782037850000,-500.0,0.00027397,2]
[425929415,1782037850000,-624.23,0.00027397,2]
[425929414,1782037850000,-8696.2,0.00027397,2]
[425929421,1782037850000,-500.0,0.00027397,2]
[425929413,1782037850000,-500.0,0.00027397,2]
[425929417,1782037850000,-4404.74,0.00027397,2]
[425929425,1782037850000,-500.0,0.00027397,2]
[425929433,1782037850000,-1025.47,0.00027397,2]
[425929426,1782037850000,-500.0,0.00027397,2]
[425929428,1782037850000,-500.0,0.00027397,2]
[425929430,1782037850000,-500.0,0.00027397,2]
[425929429,1782037850000,-650.62,0.00027397,2]
[425929431,1782037850000,-582.18,0.00027397,2]
[425929432,1782037850000,-500.0,0.00027397,2]
[425929436,1782037850000,-500.0,0.00027397,2]
[425929435,1782037850000,-500.0,0.00027397,2]
[425929434,1782037850000,-500.0,0.00027397,2]
[425929437,1782037850000,-3267.69,0.00027397,2]
[425929440,1782037850000,-500.0,0.00027397,2]
[425929439,1782037850000,-500.0,0.00027397,2]
[425929427,1782037850000,-500.0,0.00027397,2]
[425929410,1782037850000,-6386.84,0.00027397,2]
[425929390,1782037850000,-296.45747801,0.00027397,2]
[425929408,1782037850000,-500.0,0.00027397,2]
[425929448,1782037850000,-500.0,0.00027397,2]
[425929384,1782037850000,-521.32,0.00027397,2]
[425929383,1782037850000,-831.38,0.00027397,2]
[425929389,1782037850000,-500.0,0.00027397,2]
[425929385,1782037850000,-300.0,0.00027397,2]
[425929386,1782037850000,-500.0,0.00027397,2]
[425929388,1782037850000,-500.0,0.00027397,2]
[425929382,1782037850000,-6319.14,0.00027397,2]
[425929387,1782037850000,-500.0,0.00027397,2]
[425929391,1782037850000,-798.82,0.00027397,2]
[425929392,1782037850000,-500.0,0.00027397,2]
[425929397,1782037850000,-500.0,0.00027397,2]
[425929401,1782037850000,-3846.12,0.00027397,2]
[425929396,1782037850000,-3382.74,0.00027397,2]
[425929394,1782037850000,-500.0,0.00027397,2]
[425929393,1782037850000,-500.0,0.00027397,2]
[425929395,1782037850000,-611.66835038,0.00027397,2]
[425929398,1782037850000,-500.0,0.00027397,2]
[425929399,1782037850000,-500.0,0.00027397,2]
[425929400,1782037850000,-325.11260092,0.00027397,2]
[425929403,1782037850000,-500.0,0.00027397,2]
[425929412,1782037850000,-500.0,0.00027397,2]
[425929402,1782037850000,-500.0,0.00027397,2]
[425929404,1782037850000,-500.0,0.00027397,2]
[425929406,1782037850000,-500.0,0.00027397,2]
[425929405,1782037850000,-500.0,0.00027397,2]
[425929411,1782037850000,-500.0,0.00027397,2]
[425929407,1782037850000,-1221.43,0.00027397,2]
[425929443,1782037850000,-500.0,0.00027397,2]
[425929447,1782037850000,-526.21,0.00027397,2]
[425929500,1782037850000,-2636.35,0.00027397,2]
[425929477,1782037850000,-500.0,0.00027397,2]
[425929487,1782037850000,-500.0,0.00027397,2]
[425929478,1782037850000,-617.01,0.00027397,2]
[425929488,1782037850000,-1155.12,0.00027397,2]
[425929476,1782037850000,-488.31906995,0.00027397,2]
[425929479,1782037850000,-500.0,0.00027397,2]
[425929480,1782037850000,-1027.88,0.00027397,2]
[425929489,1782037850000,-557.99810627,0.00027397,2]
[425929482,1782037850000,-500.0,0.00027397,2]
[425929486,1782037850000,-3597.01,0.00027397,2]
[425929481,1782037850000,-500.0,0.00027397,2]
[425929483,1782037850000,-500.0,0.00027397,2]
[425929485,1782037850000,-4764.69,0.00027397,2]
[425929470,1782037850000,-500.0,0.00027397,2]
[425929490,1782037850000,-500.0,0.00027397,2]
[425929495,1782037850000,-500.0,0.00027397,2]
[425929492,1782037850000,-500.0,0.00027397,2]
[425929496,1782037850000,-500.0,0.00027397,2]
[425929498,1782037850000,-829.45,0.00027397,2]
[425929491,1782037850000,-4040.17,0.00027397,2]
[425929502,1782037850000,-500.0,0.00027397,2]
[425929501,1782037850000,-500.0,0.00027397,2]
[425929497,1782037850000,-500.0,0.00027397,2]
[425929499,1782037850000,-942.63,0.00027397,2]
[425929493,1782037850000,-500.0,0.00027397,2]
[425929504,1782037850000,-500.0,0.00027397,2]
[425929438,1782037850000,-500.0,0.00027397,2]
[425929503,1782037850000,-1696.94,0.00027397,2]
[425929494,1782037850000,-832.36,0.00027397,2]
[425929469,1782037850000,-500.0,0.00027397,2]
[425929484,1782037850000,-500.0,0.00027397,2]
[425929473,1782037850000,-500.0,0.00027397,2]
[425929445,1782037850000,-6815.25,0.00027397,2]
[425929442,1782037850000,-500.0,0.00027397,2]
[425929474,1782037850000,-500.0,0.00027397,2]
[425929441,1782037850000,-500.0,0.00027397,2]
[425929446,1782037850000,-8068.87,0.00027397,2]
[425929450,1782037850000,-4316.99,0.00027397,2]
[425929459,1782037850000,-500.0,0.00027397,2]
[425929458,1782037850000,-500.0,0.00027397,2]
[425929460,1782037850000,-4989.66,0.00027397,2]
[425929461,1782037850000,-6422.86,0.00027397,2]
[425929451,1782037850000,-500.0,0.00027397,2]
[425929452,1782037850000,-500.0,0.00027397,2]
[425929449,1782037850000,-500.0,0.00027397,2]
[425929453,1782037850000,-500.0,0.00027397,2]
[425929444,1782037850000,-482.84624611,0.00027397,2]
[425929454,1782037850000,-682.33,0.00027397,2]
[425929457,1782037850000,-500.0,0.00027397,2]
[425929463,1782037850000,-500.0,0.00027397,2]
[425929462,1782037850000,-500.0,0.00027397,2]